Workbook

Sheet Лист1
A1: МБОУ «Введенско-Слободская ООШ» | G1: Утвердил: | H1: директор
A2: Форма ежедневного меню приготавливаемых блюд | H2: Нурмухаметова Н.М.
A3: Возрастная категория | F3: 7-11 лет | H3: дата | I3: 1 | J3: Сентябрь | K3: 2025
I4: день | J4: месяц | K4: год
A5: Неделя | B5: День недели | C5: Прием пищи | D5: Раздел меню | E5: № рецептуры | F5: Блюда | G5: Вес блюда, г | H5: Цена | I5: Калорийность | J5: Белки | K5: Жиры | L5: Углеводы
A6: 1 | B6: 1 | C6: Завтрак | D6: гор.блюдо | E6: ТТК 2020 г | F6: Тефтели куриные "Лакомка" в соусе для запекания | G6: 90 | I6: 158 | J6: 9.268 | K6: 11.111 | L6: 5.217
D7: гор.блюдо | E7: №302/2015г,Дели | F7: Каша гречневая рассыпчатая | G7: 150 | I7: 212 | J7: 6.622 | K7: 5.599 | L7: 35.675
D8: гор.напиток | E8: ТТК №2694 от 14.09.2023 г | F8: Напиток из вишни | G8: 200 | I8: 48 | J8: 0.120 | K8: 0.030 | L8: 11.570
D9: хлеб | F9: Хлеб ржано-пшеничный/ Хлеб пшеничный | G9: 40 | I9: 91 | J9: 2.520 | K9: 0.360 | L9: 18.840
D10: фрукты | E10: №338 Дели 2015г | F10: Плоды и ягоды свежие (яблоки) | G10: 100 | I10: 47 | J10: 0.400 | K10: 0.400 | L10: 9.800
D11: закуска | E11: №71/2015 г Дели | F11: Салат из моркови | G11: 60 | I11: 58 | J11: 0.702 | K11: 3.051 | L11: 6.720
D13: итого | G13: =SUM(G6:G12) -> 640 | H13: 74.77 | I13: =SUM(I5:I12) -> 614 | J13: =SUM(J5:J12) -> 19.632 | K13: =SUM(K5:K12) -> 20.551 | L13: =SUM(L5:L12) -> 87.822
A14: =A6 -> 1 | B14: =B6 -> 1 | C14: Обед | D14: закуска
D15: 1 блюдо
D16: 2 блюдо
D17: гарнир
D18: напиток
D19: хлеб бел.
D20: хлеб черн.
D23: итого | G23: =SUM(G14:G22) -> 0 | H23: =SUM(H14:H22) -> 0 | I23: =SUM(I14:I22) -> 0 | J23: =SUM(J14:J22) -> 0 | K23: =SUM(K14:K22) -> 0 | L23: =SUM(L14:L22) -> 0
A24: =A6 -> 1 | B24: =B6 -> 1 | C24: Итого за день: | G24: =G13+G23 -> 640 | H24: =H13+H23 -> 74.77 | I24: =I13+I23 -> 614 | J24: =J13+J23 -> 19.632 | K24: =K13+K23 -> 20.551 | L24: =L13+L23 -> 87.822
A25: 1 | B25: 2 | C25: Завтрак | D25: гор.блюдо | E25: ТТК июль 2021г | F25: Фрикассе из куриных грудок | G25: 90 | I25: 119 | J25: 8.026 | K25: 9.076 | L25: 1.236
D26: гор.блюдо | E26: №303/2015г,Дели | F26: Каша рисовая вязкая | G26: 150 | I26: 188 | J26: 4.303 | K26: 6.129 | L26: 28.944
D27: гор.напиток | E27: №701 Сбор. рецеп. 2004г | F27: Напиток яблочный | G27: 200 | I27: 52 | J27: 0.100 | K27: 0.100 | L27: 12.430
D28: хлеб | F28: Хлеб ржано-пшеничный/ Хлеб пшеничный | G28: 40 | I28: 91 | J28: 2.520 | K28: 0.360 | L28: 18.840
D30: закуска | E30: №52/2015 Дели | F30: Салат из свеклы отварной (с маслом) | G30: 60 | I30: 56 | J30: 0.855 | K30: 3.653 | L30: 5.016
D32: итого | G32: =SUM(G25:G31) -> 540 | H32: 74.77 | I32: =SUM(I25:I31) -> 506 | J32: =SUM(J25:J31) -> 15.804 | K32: =SUM(K25:K31) -> 19.318 | L32: =SUM(L25:L31) -> 66.466
A33: =A25 -> 1 | B33: =B25 -> 2 | C33: Обед | D33: закуска
D34: 1 блюдо
D35: 2 блюдо
D36: гарнир
D37: напиток
D38: хлеб бел.
D39: хлеб черн.
D42: итого | G42: =SUM(G33:G41) -> 0 | H42: =SUM(H33:H41) -> 0 | I42: =SUM(I33:I41) -> 0 | J42: =SUM(J33:J41) -> 0 | K42: =SUM(K33:K41) -> 0 | L42: =SUM(L33:L41) -> 0
A43: =A25 -> 1 | B43: =B25 -> 2 | C43: Итого за день: | G43: =G32+G42 -> 540 | H43: =H32+H42 -> 74.77 | I43: =I32+I42 -> 506 | J43: =J32+J42 -> 15.804 | K43: =K32+K42 -> 19.318 | L43: =L32+L42 -> 66.466
A44: 1 | B44: 3 | C44: Завтрак | D44: гор.блюдо | E44: №243/2015 Дели | F44: Сосиски отварные с соусом для запекания | G44: 90 | I44: 157 | J44: 8.916 | K44: 9.543 | L44: 8.758
D45: гор.блюдо | E45: №309/2015г Дели | F45: Макаронные изделия отварные | G45: 150 | I45: 212 | J45: 5.602 | K45: 5.068 | L45: 35.906
D46: гор.напиток | E46: ТТК от 2021 г | F46: Напиток из шиповника | G46: 200 | I46: 41 | J46: 0.012 | K46: 0.001 | L46: 10.178
D47: хлеб | F47: Хлеб ржано-пшеничный/ Хлеб пшеничный | G47: 40 | I47: 91 | J47: 2.520 | K47: 0.360 | L47: 18.840
D48: фрукты | E48: №338 Дели 2015г | F48: Плоды и ягоды свежие (яблоки) | G48: 100 | I48: 47 | J48: 0.400 | K48: 0.400 | L48: 9.800
D49: закуска | E49: №71/2015 г Дели | F49: Овощи натуральные свежие (огурцы) | G49: 60 | I49: 7 | J49: 0.420 | K49: 0.060 | L49: 1.140
D51: итого | G51: =SUM(G44:G50) -> 640 | H51: 74.77 | I51: =SUM(I44:I50) -> 555 | J51: =SUM(J44:J50) -> 17.870 | K51: =SUM(K44:K50) -> 15.432 | L51: =SUM(L44:L50) -> 84.622
A52: =A44 -> 1 | B52: =B44 -> 3 | C52: Обед | D52: закуска
D53: 1 блюдо
D54: 2 блюдо
D55: гарнир
D56: напиток
D57: хлеб бел.
D58: хлеб черн.
D61: итого | G61: =SUM(G52:G60) -> 0 | H61: =SUM(H52:H60) -> 0 | I61: =SUM(I52:I60) -> 0 | J61: =SUM(J52:J60) -> 0 | K61: =SUM(K52:K60) -> 0 | L61: =SUM(L52:L60) -> 0
A62: =A44 -> 1 | B62: =B44 -> 3 | C62: Итого за день: | G62: =G51+G61 -> 640 | H62: =H51+H61 -> 74.77 | I62: =I51+I61 -> 555 | J62: =J51+J61 -> 17.87 | K62: =K51+K61 -> 15.432 | L62: =L51+L61 -> 84.622
A63: 1 | B63: 4 | C63: Завтрак | D63: гор.блюдо | E63: ТТК 2021г | F63: Плов с говядиной | G63: 190 | I63: 324 | J63: 13.404 | K63: 14.443 | L63: 35.065
D65: гор.напиток | E65: ТТК от 2021г | F65: Чай с сахаром | G65: 208 | I65: 32 | J65: 0.011 | K65: 0.007 | L65: 7.998
D66: хлеб | F66: Хлеб ржано-пшеничный/ Хлеб пшеничный | G66: 45 | I66: 102 | J66: 2.770 | K66: 0.410 | L66: 21.090
D68: закуска | E68: №45/2015г,Дели | F68: Салат из белокочанной капусты | G68: 60 | I68: 54 | J68: 0.931 | K68: 3.051 | L68: 5.645
D69: конд. изд. | E69: ТТК(Акт19.09.2018г) | F69: Печенье весовое 3 шт/ | G69: 9.6 | I69: 43 | J69: 0.662 | K69: 1.325 | L69: 7.114
D70: итого | G70: =SUM(G63:G69) -> 512.6 | H70: 74.77 | I70: =SUM(I63:I69) -> 555 | J70: =SUM(J63:J69) -> 17.778 | K70: =SUM(K63:K69) -> 19.236 | L70: =SUM(L63:L69) -> 76.912
A71: =A63 -> 1 | B71: =B63 -> 4 | C71: Обед | D71: закуска
D72: 1 блюдо
D73: 2 блюдо
D74: гарнир
D75: напиток
D76: хлеб бел.
D77: хлеб черн.
D80: итого | G80: =SUM(G71:G79) -> 0 | H80: =SUM(H71:H79) -> 0 | I80: =SUM(I71:I79) -> 0 | J80: =SUM(J71:J79) -> 0 | K80: =SUM(K71:K79) -> 0 | L80: =SUM(L71:L79) -> 0
A81: =A63 -> 1 | B81: =B63 -> 4 | C81: Итого за день: | G81: =G70+G80 -> 512.6 | H81: =H70+H80 -> 74.77 | I81: =I70+I80 -> 555 | J81: =J70+J80 -> 17.778 | K81: =K70+K80 -> 19.236 | L81: =L70+L80 -> 76.912
A82: 1 | B82: 5 | C82: Завтрак | D82: гор.блюдо | E82: ТТК июль 2021г | F82: Фрикассе из куриных грудок | G82: 90 | I82: 119 | J82: 8.026 | K82: 9.076 | L82: 1.236
D83: гор.блюдо | E83: №309/2015г Дели | F83: Макаронные изделия отварные | G83: 150 | I83: 212 | J83: 5.602 | K83: 5.068 | L83: 35.906
D84: гор.напиток | E84: ТТК №2694 от 14.09.2023г | F84: Напиток из вишни | G84: 200 | I84: 48 | J84: 0.120 | K84: 0.030 | L84: 11.570
D85: хлеб | F85: Хлеб ржано-пшеничный/ Хлеб пшеничный | G85: 40 | I85: 91 | J85: 2.520 | K85: 0.360 | L85: 18.840
D87: закуска | E87: №71/2015 г Дели | F87: Салат из моркови | G87: 60 | I87: 58 | J87: 0.702 | K87: 3.051 | L87: 6.720
D88: конд. изд. | F88: Вафли весовые 1 шт/ | G88: 21 | I88: 86 | J88: 2.750 | K88: 2.500 | L88: 13.000
D89: итого | G89: =SUM(G82:G88) -> 561 | H89: 74.77 | I89: =SUM(I82:I88) -> 614 | J89: =SUM(J82:J88) -> 19.720 | K89: =SUM(K82:K88) -> 20.085 | L89: =SUM(L82:L88) -> 87.272
A90: =A82 -> 1 | B90: =B82 -> 5 | C90: Обед | D90: закуска
D91: 1 блюдо
D92: 2 блюдо
D93: гарнир
D94: напиток
D95: хлеб бел.
D96: хлеб черн.
D99: итого | G99: =SUM(G90:G98) -> 0 | H99: =SUM(H90:H98) -> 0 | I99: =SUM(I90:I98) -> 0 | J99: =SUM(J90:J98) -> 0 | K99: =SUM(K90:K98) -> 0 | L99: =SUM(L90:L98) -> 0
A100: =A82 -> 1 | B100: =B82 -> 5 | C100: Итого за день: | G100: =G89+G99 -> 561 | H100: =H89+H99 -> 74.77 | I100: =I89+I99 -> 614 | J100: =J89+J99 -> 19.72 | K100: =K89+K99 -> 20.085 | L100: =L89+L99 -> 87.272
A101: 1 | B101: 6 | C101: Завтрак | D101: гор.блюдо | E101: ТТК 2015г | F101: Пельмени "Для умников и умниц" отварные с соус. для запекания | G101: 180 | I101: 400 | J101: 16.544 | K101: 19.086 | L101: 39.317
D103: гор.напиток | E103: ТТК от 2021г | F103: Чай с сахаром, лимоном | G103: 213 | I103: 34 | J103: 0.056 | K103: 0.012 | L103: 8.148
D104: хлеб | F104: Хлеб ржано-пшеничный/ Хлеб пшеничный | G104: 40 | I104: 91 | J104: 2.520 | K104: 0.360 | L104: 18.840
D105: фрукты | E105: №338 Дели 2015г | F105: Плоды и ягоды свежие (яблоки) | G105: 100 | I105: 47 | J105: 0.400 | K105: 0.400 | L105: 9.800
D106: закуска | E106: ТТК №1444 от 28.05.2021г | F106: Овощные палочки из огурцов | G106: 60 | I106: 7 | J106: 0.420 | K106: 0.060 | L106: 1.140
D108: итого | G108: =SUM(G101:G107) -> 593 | H108: 74.77 | I108: =SUM(I101:I107) -> 579 | J108: =SUM(J101:J107) -> 19.940 | K108: =SUM(K101:K107) -> 19.918 | L108: =SUM(L101:L107) -> 77.245
A109: =A101 -> 1 | B109: 6 | C109: Обед | D109: закуска
D110: 1 блюдо
D111: 2 блюдо
D112: гарнир
D113: напиток
D114: хлеб бел.
D115: хлеб черн.
D118: итого | G118: =SUM(G109:G117) -> 0 | H118: =SUM(H109:H117) -> 0 | I118: =SUM(I109:I117) -> 0 | J118: =SUM(J109:J117) -> 0 | K118: =SUM(K109:K117) -> 0 | L118: =SUM(L109:L117) -> 0
A119: =A101 -> 1 | B119: =B101 -> 6 | C119: Итого за день: | G119: =G108+G118 -> 593 | H119: =H108+H118 -> 74.77 | I119: =I108+I118 -> 579 | J119: =J108+J118 -> 19.940 | K119: =K108+K118 -> 19.918 | L119: =L108+L118 -> 77.245
A120: 2 | B120: 1 | C120: Завтрак | D120: гор.блюдо | E120: №260/2015г Дели | F120: Гуляш из говядины | G120: 90 | I120: 160 | J120: 10.575 | K120: 11.910 | L120: 2.561
D121: гор.блюдо | E121: №309/2015г Дели | F121: Макаронные изделия отварные | G121: 150 | I121: 212 | J121: 5.602 | K121: 5.068 | L121: 35.906
D122: гор.напиток | E122: ТТК №2693 от 14.09.2023г | F122: Напиток из урюка | G122: 200 | I122: 42 | J122: 0.800 | K122: 0.064 | L122: 9.460
D123: хлеб | F123: Хлеб ржано-пшеничный/ Хлеб пшеничный | G123: 40 | I123: 91 | J123: 2.520 | K123: 0.360 | L123: 18.840
D125: закуска | E125: №71/2015 г Дели | F125: Салат из моркови | G125: 60 | I125: 58 | J125: 0.702 | K125: 3.051 | L125: 6.720
D127: итого | G127: =SUM(G120:G126) -> 540 | H127: 74.77 | I127: =SUM(I120:I126) -> 563 | J127: =SUM(J120:J126) -> 20.199 | K127: =SUM(K120:K126) -> 20.453 | L127: =SUM(L120:L126) -> 73.487
A128: =A120 -> 2 | B128: =B120 -> 1 | C128: Обед | D128: закуска
D129: 1 блюдо
D130: 2 блюдо
D131: гарнир
D132: напиток
D133: хлеб бел.
D134: хлеб черн.
D137: итого | G137: =SUM(G128:G136) -> 0 | H137: =SUM(H128:H136) -> 0 | I137: =SUM(I128:I136) -> 0 | J137: =SUM(J128:J136) -> 0 | K137: =SUM(K128:K136) -> 0 | L137: =SUM(L128:L136) -> 0
A138: =A120 -> 2 | B138: =B120 -> 1 | C138: Итого за день: | G138: =G127+G137 -> 540 | H138: =H127+H137 -> 74.77 | I138: =I127+I137 -> 563 | J138: =J127+J137 -> 20.199 | K138: =K127+K137 -> 20.453 | L138: =L127+L137 -> 73.487
A139: 2 | B139: 2 | C139: Завтрак | D139: гор.блюдо | E139: ТТК 2023г | F139: Жаркое из птицы (грудки куриные) | G139: 190 | I139: 302 | J139: 13.354 | K139: 13.713 | L139: 31.248
D141: гор.напиток | E141: ТТК от 2021г | F141: Чай с сахаром, лимоном | G141: 213 | I141: 34 | J141: 0.056 | K141: 0.012 | L141: 8.148
D142: хлеб | F142: Хлеб ржано-пшеничный/ Хлеб пшеничный | G142: 40 | I142: 91 | J142: 2.520 | K142: 0.360 | L142: 18.840
D144: закуска | E144: №45/2015г,Дели | F144: Салат из белокочанной капусты | G144: 60 | I144: 54 | J144: 0.931 | K144: 3.051 | L144: 5.645
D145: конд. изд. | F145: Вафли весовые 1 шт/ | G145: 21 | I145: 86 | J145: 2.750 | K145: 2.500 | L145: 13.000
D146: итого | G146: =SUM(G139:G145) -> 524 | H146: 74.77 | I146: =SUM(I139:I145) -> 567 | J146: =SUM(J139:J145) -> 19.611 | K146: =SUM(K139:K145) -> 19.636 | L146: =SUM(L139:L145) -> 76.881
A147: =A139 -> 2 | B147: =B139 -> 2 | C147: Обед | D147: закуска
D148: 1 блюдо
D149: 2 блюдо
D150: гарнир
D151: напиток
D152: хлеб бел.
D153: хлеб черн.
D156: итого | G156: =SUM(G147:G155) -> 0 | H156: =SUM(H147:H155) -> 0 | I156: =SUM(I147:I155) -> 0 | J156: =SUM(J147:J155) -> 0 | K156: =SUM(K147:K155) -> 0 | L156: =SUM(L147:L155) -> 0
A157: =A139 -> 2 | B157: =B139 -> 2 | C157: Итого за день: | G157: =G146+G156 -> 524 | H157: =H146+H156 -> 74.77 | I157: =I146+I156 -> 567 | J157: =J146+J156 -> 19.611 | K157: =K146+K156 -> 19.636 | L157: =L146+L156 -> 76.881
A158: 2 | B158: 3 | C158: Завтрак | D158: гор.блюдо | E158: ТТК 2015г | F158: Пельмени "Для умников и умниц" отварные с маслом | G158: 165 | I158: 326 | J158: 13.864 | K158: 12.563 | L158: 39.419
D160: гор.напиток | E160: ТТК №2693 от 14.09.2023г | F160: Напиток из урюка | G160: 200 | I160: 42 | J160: 0.800 | K160: 0.064 | L160: 9.460
D161: хлеб | F161: Хлеб ржано-пшеничный/ Хлеб пшеничный | G161: 40 | I161: 91 | J161: 2.520 | K161: 0.360 | L161: 18.840
D162: фрукты | E162: №338 Дели 2015г | F162: Плоды и ягоды свежие (яблоки) | G162: 100 | I162: 47 | J162: 0.400 | K162: 0.400 | L162: 9.800
D163: закуска | E163: №52/2015 Дели | F163: Салат из свеклы отварной (с маслом) | G163: 60 | I163: 56 | J163: 0.855 | K163: 3.653 | L163: 5.016
D165: итого | G165: =SUM(G158:G164) -> 565 | H165: 74.77 | I165: =SUM(I158:I164) -> 562 | J165: =SUM(J158:J164) -> 18.439 | K165: =SUM(K158:K164) -> 17.040 | L165: =SUM(L158:L164) -> 82.535
A166: =A158 -> 2 | B166: =B158 -> 3 | C166: Обед | D166: закуска
D167: 1 блюдо
D168: 2 блюдо
D169: гарнир
D170: напиток
D171: хлеб бел.
D172: хлеб черн.
D175: итого | G175: =SUM(G166:G174) -> 0 | H175: =SUM(H166:H174) -> 0 | I175: =SUM(I166:I174) -> 0 | J175: =SUM(J166:J174) -> 0 | K175: =SUM(K166:K174) -> 0 | L175: =SUM(L166:L174) -> 0
A176: =A158 -> 2 | B176: =B158 -> 3 | C176: Итого за день: | G176: =G165+G175 -> 565 | H176: =H165+H175 -> 74.77 | I176: =I165+I175 -> 562 | J176: =J165+J175 -> 18.439 | K176: =K165+K175 -> 17.04 | L176: =L165+L175 -> 82.535
A177: 2 | B177: 4 | C177: Завтрак | D177: гор.блюдо | E177: ТТК июль 2021г | F177: Фрикассе из куриных грудок | G177: 90 | I177: 119 | J177: 8.026 | K177: 9.076 | L177: 1.236
D178: гор.блюдо | E178: №302/2015г,Дели | F178: Каша гречневая рассыпчатая | G178: 150 | I178: 212 | J178: 6.622 | K178: 5.599 | L178: 35.675
D179: гор.напиток | E179: ТТК от 2021г | F179: Компот из замороженной компотной смеси | G179: 200 | I179: 46 | J179: 0.135 | K179: 0.023 | L179: 11.150
D180: хлеб | F180: Хлеб ржано-пшеничный/ Хлеб пшеничный | G180: 40 | I180: 91 | J180: 2.520 | K180: 0.360 | L180: 18.840
D182: закуска | E182: №71/2015 г Дели | F182: Овощи натуральные свежие (помидоры) | G182: 60 | I182: 14 | J182: 0.660 | K182: 0.120 | L182: 2.280
D184: итого | G184: =SUM(G177:G183) -> 540 | H184: 74.77 | I184: =SUM(I177:I183) -> 482 | J184: =SUM(J177:J183) -> 17.963 | K184: =SUM(K177:K183) -> 15.178 | L184: =SUM(L177:L183) -> 69.181
A185: =A177 -> 2 | B185: =B177 -> 4 | C185: Обед | D185: закуска
D186: 1 блюдо
D187: 2 блюдо
D188: гарнир
D189: напиток
D190: хлеб бел.
D191: хлеб черн.
D194: итого | G194: =SUM(G185:G193) -> 0 | H194: =SUM(H185:H193) -> 0 | I194: =SUM(I185:I193) -> 0 | J194: =SUM(J185:J193) -> 0 | K194: =SUM(K185:K193) -> 0 | L194: =SUM(L185:L193) -> 0
A195: =A177 -> 2 | B195: =B177 -> 4 | C195: Итого за день: | G195: =G184+G194 -> 540 | H195: =H184+H194 -> 74.77 | I195: =I184+I194 -> 482 | J195: =J184+J194 -> 17.963 | K195: =K184+K194 -> 15.178 | L195: =L184+L194 -> 69.181
A196: 2 | B196: 5 | C196: Завтрак | D196: гор.блюдо | E196: ТТК 2020 г | F196: Тефтели куриные "Лакомка" в соусе для запекания | G196: 90 | I196: 158 | J196: 9.268 | K196: 11.111 | L196: 5.217
D197: гор.блюдо | E197: №309/2015г Дели | F197: Макаронные изделия отварные | G197: 150 | I197: 212 | J197: 5.602 | K197: 5.068 | L197: 35.906
D198: гор.напиток | E198: ТТК №2694 от 14.09.2023 г | F198: Напиток из вишни | G198: 200 | I198: 48 | J198: 0.120 | K198: 0.030 | L198: 11.570
D199: хлеб | F199: Хлеб ржано-пшеничный/ Хлеб пшеничный | G199: 40 | I199: 91 | J199: 2.520 | K199: 0.360 | L199: 18.840
D201: закуска | E201: №720/2015 г Дели | F201: Салат из свежих огурцов | G201: 60 | I201: 39 | J201: 0.399 | K201: 3.653 | L201: 1.083
D203: итого | G203: =SUM(G196:G202) -> 540 | H203: 74.77 | I203: =SUM(I196:I202) -> 548 | J203: =SUM(J196:J202) -> 17.909 | K203: =SUM(K196:K202) -> 20.222 | L203: =SUM(L196:L202) -> 72.616
A204: =A196 -> 2 | B204: =B196 -> 5 | C204: Обед | D204: закуска
D205: 1 блюдо
D206: 2 блюдо
D207: гарнир
D208: напиток
D209: хлеб бел.
D210: хлеб черн.
D213: итого | G213: =SUM(G204:G212) -> 0 | H213: =SUM(H204:H212) -> 0 | I213: =SUM(I204:I212) -> 0 | J213: =SUM(J204:J212) -> 0 | K213: =SUM(K204:K212) -> 0 | L213: =SUM(L204:L212) -> 0
A214: =A196 -> 2 | B214: =B196 -> 5 | C214: Итого за день: | G214: =G203+G213 -> 540 | H214: =H203+H213 -> 74.77 | I214: =I203+I213 -> 548 | J214: =J203+J213 -> 17.909 | K214: =K203+K213 -> 20.222 | L214: =L203+L213 -> 72.616
A215: 2 | B215: 6 | C215: Завтрак | D215: гор.блюдо | E215: №243/2015 Дели | F215: Сосиски отварные с соусом для запекания с овощами натуральными свежими (огурцами) | G215: 130 | I215: 161 | J215: 9.196 | K215: 9.583 | L215: 9.518
D216: гор.блюдо | E216: №304/2015г,Дели | F216: Рис отварной | G216: 150 | I216: 179 | J216: 4.303 | K216: 5.129 | L216: 28.944
D217: гор.напиток | E217: ТТК 2021г | F217: Чай с сахаром | G217: 208 | I217: 32 | J217: 0.011 | K217: 0.007 | L217: 7.998
D218: хлеб | F218: Хлеб ржано-пшеничный/ Хлеб пшеничный | G218: 40 | I218: 91 | J218: 2.520 | K218: 0.360 | L218: 18.840
D219: фрукты | E219: №338 Дели 2015г | F219: Плоды и ягоды свежие (яблоки) | G219: 100 | I219: 47 | J219: 0.400 | K219: 0.400 | L219: 9.800
D222: итого | G222: =SUM(G215:G221) -> 628 | H222: 74.77 | I222: =SUM(I215:I221) -> 510 | J222: =SUM(J215:J221) -> 16.430 | K222: =SUM(K215:K221) -> 15.479 | L222: =SUM(L215:L221) -> 75.100
A223: =A215 -> 2 | B223: 6 | C223: Обед | D223: закуска
D224: 1 блюдо
D225: 2 блюдо
D226: гарнир
D227: напиток
D228: хлеб бел.
D229: хлеб черн.
D232: итого | G232: =SUM(G223:G231) -> 0 | H232: =SUM(H223:H231) -> 0 | I232: =SUM(I223:I231) -> 0 | J232: =SUM(J223:J231) -> 0 | K232: =SUM(K223:K231) -> 0 | L232: =SUM(L223:L231) -> 0
A233: =A215 -> 2 | B233: =B215 -> 6 | C233: Итого за день: | G233: =G222+G232 -> 628 | H233: =H222+H232 -> 74.77 | I233: =I222+I232 -> 510 | J233: =J222+J232 -> 16.43 | K233: =K222+K232 -> 15.479 | L233: =L222+L232 -> 75.1
F234: Среднее значение за период: | G234: =(G233+G214+G195+G176+G157+G138+G119+G100+G81+G62+G43+G24)/12 -> 569 | H234: =H223+H233 -> 74.77 | I234: =(I233+I214+I195+I176+I157+I138+I119+I100+I81+I62+I43+I24)/12 -> 555 | J234: =(J233+J214+J195+J176+J157+J138+J119+J100+J81+J62+J43+J24)/12 -> 18.441 | K234: =(K233+K214+K195+K176+K157+K138+K119+K100+K81+K62+K43+K24)/12 -> 18.546 | L234: =(L233+L214+L195+L176+L157+L138+L119+L100+L81+L62+L43+L24)/12 -> 77.512
